bitfinex/quotes_ETHUSD_20250414
["timestamp","ask_amount","ask_price","bid_price","bid_amount"]
[1744638598613,0.55,1656.1,1655.9,8.46]
[1744638599008,0.55,1656.1,1655.9,14.49867]
[1744638599260,0.55,1656.1,1656.0,6.03864]
[1744638600964,0.55,1656.1,1656.0,6.09901839]
[1744638601246,0.55,1656.1,1656.0,6.03864]
[1744638602010,0.55,1656.1,1656.0,6.09901252]
[1744638603058,0.55,1656.1,1656.0,6.03864]
[1744638603213,0.55,1656.1,1656.0,8.2373577]
[1744638603827,1e-05,1656.1,1656.0,8.75300554]
[1744638604037,1e-05,1656.1,1656.0,14.22598083]
[1744638604237,1e-05,1656.1,1656.0,18.0434577]
[1744638605760,1e-05,1656.1,1656.0,21.48986309]
[1744638607767,1e-05,1656.1,1656.0,12.5874577]
[1744638607967,1e-05,1656.1,1656.0,21.0414577]
[1744638608265,1e-05,1656.1,1656.0,19.6913577]
[1744638608471,1e-05,1656.1,1656.0,17.49264]
[1744638608776,1e-05,1656.1,1656.0,14.49264]
[1744638609673,1e-05,1656.1,1656.0,8.454]
[1744638609969,1.40801,1656.1,1655.9,6.03899]
[1744638610175,1.40801,1656.1,1655.9,6.09926185]
[1744638610336,1.40801,1656.1,1655.9,6.03888]
[1744638610727,7.4463,1656.1,1655.8,53.11726]
[1744638611474,1.40801,1656.1,1655.8,6.03923]
[1744638611675,6.0387,1656.0,1655.7,6.03972]
[1744638611897,1.40801,1656.1,1655.7,2.024773]
[1744638612099,1.40801,1656.1,1655.8,6.0393]
[1744638612100,7.44635,1656.1,1655.8,6.0393]
[1744638612323,4.28388476,1656.0,1655.6,8.168]
[1744638612609,6.03876,1656.0,1655.7,0.06039909]
[1744638612814,13.48476,1656.1,1655.8,6.03933]
[1744638613106,7.44631,1656.1,1655.8,6.03933]
[1744638613301,13.48476,1656.1,1655.8,6.03933]
[1744638613462,7.44631,1656.1,1655.7,6.03958]
[1744638613659,1.40801,1656.1,1655.7,1.20796]
[1744638613910,1.40801,1656.1,1656.0,6.03864]
[1744638613911,1e-05,1656.1,1656.0,6.03864]
[1744638614390,1e-05,1656.1,1656.0,6.09901524]
[1744638615192,1e-05,1656.1,1656.0,6.03864]
[1744638615700,1e-05,1656.1,1655.9,12.07757]
[1744638615929,1e-05,1656.1,1655.9,12.0776]
[1744638616225,1e-05,1656.1,1655.9,6.03871]
[1744638616527,1e-05,1656.1,1656.0,6.03864]
[1744638616828,1e-05,1656.1,1655.7,14.20865]
[1744638616829,6.03833,1656.1,1655.7,14.20865]
[1744638617127,1.3342,1656.0,1655.8,6.09960888]
[1744638617334,1.3342,1656.0,1655.8,6.09960667]
[1744638617489,1.3342,1656.0,1655.8,0.06038667]
[1744638617687,7.373,1656.0,1655.7,6.0397]
[1744638617929,7.373,1656.0,1655.6,6.04004]
[1744638618117,7.373,1656.0,1655.7,6.03963]
[1744638618425,1.3342,1656.0,1655.9,6.03901]
[1744638618614,1.3342,1656.0,1655.8,6.0392]
[1744638618797,1.3342,1656.0,1655.9,6.03901]
[1744638619133,1e-05,1656.1,1655.8,0.06038533]
[1744638619331,1e-05,1656.1,1655.9,6.03873]
[1744638619503,1e-05,1656.1,1655.8,12.07858]
[1744638619700,1e-05,1656.1,1655.9,6.09923345]
[1744638620010,1e-05,1656.1,1655.9,6.03885]
[1744638620215,1e-05,1656.1,1656.0,6.03864]
[1744638621324,1e-05,1656.1,1655.9,6.03884]
[1744638621698,1e-05,1656.1,1656.0,6.03864]
[1744638621995,1e-05,1656.1,1656.0,6.09902121]
[1744638622216,1e-05,1656.1,1656.0,7.25242612]
[1744638622727,1e-05,1656.1,1655.8,14.20834]
[1744638623031,7.45512,1656.0,1655.7,6.0396]
[1744638623226,1.4163,1656.0,1655.8,6.03903]
[1744638623453,1.4163,1656.0,1655.9,0.06038967]
[1744638623594,1e-05,1656.1,1656.0,6.03864]
[1744638623787,6.03833,1656.1,1655.7,6.03965]
[1744638624040,6.0388,1656.0,1655.7,6.03961]
[1744638624240,6.0388,1656.0,1655.7,12.07923]
[1744638624438,6.03913,1655.9,1655.5,6.0403]
[1744638624595,6.03975,1655.7,1655.4,14.2098]
[1744638624795,12.07965,1655.7,1655.4,8.169]
[1744638625001,12.07969,1655.7,1655.4,8.169]
[1744638625207,6.03975,1655.7,1655.4,8.169]
[1744638625728,6.04059,1655.5,1655.0,55.238]
[1744638625927,6.04059,1655.5,1654.7,1.4081]
[1744638625928,6.04129,1655.3,1654.7,1.4081]
[1744638626147,7.48602,1655.2,1654.7,1.4081]
[1744638626426,7.48602,1655.2,1654.6,8.169]
[1744638626427,6.04234,1655.0,1654.6,8.169]
[1744638626589,1.4443,1655.2,1654.7,6.86027]
[1744638626792,7.48595,1655.2,1654.7,0.8169]
[1744638626993,6.04206,1655.1,1654.7,0.8169]
[1744638627219,7.48595,1655.2,1654.7,0.8169]
[1744638627437,1.4443,1655.2,1654.7,0.8169]
[1744638627638,1.4443,1655.2,1654.9,6.04241]
[1744638627848,1.4443,1655.2,1654.9,0.61028322]
[1744638628015,1.4443,1655.2,1654.8,6.04286]
[1744638628218,1.4443,1655.2,1654.7,0.8169]
[1744638628219,7.48599,1655.2,1654.7,0.8169]
[1744638628424,0.55,1655.1,1654.6,8.169]
[1744638628626,1.4067,1654.7,1654.1,6.04555]
[1744638628950,7.45027,1654.7,1654.1,6.04545]
[1744638629140,7.45027,1654.7,1654.1,6.04536]
[1744638629336,7.45015,1654.7,1654.1,6.04536]
[1744638629537,7.45015,1654.7,1654.2,0.604536]
[1744638629538,1.4067,1654.7,1654.2,0.604536]
[1744638629741,6.04389,1654.6,1654.0,6.0459]
[1744638629983,1.4336,1654.2,1653.7,15.62731]
[1744638630181,1.4336,1654.6,1653.7,10.04161238]
[1744638630350,1.3758,1654.8,1654.3,6.04484]
[1744638630542,7.41847,1654.9,1654.4,14.21531]
[1744638630873,1.3758,1654.9,1654.6,6.04366]
[1744638631040,1.3758,1654.9,1654.6,12.08722]
[1744638631238,1.3295,1655.2,1654.4,18.636761]
[1744638631446,1.3295,1655.4,1654.9,6.04231]
[1744638631680,0.19088022,1655.1,1654.8,6.04297]
[1744638631879,13.4118,1655.4,1654.9,6.646917]
[1744638632083,0.19045224,1655.0,1654.9,6.646957]
[1744638632292,1.3295,1655.4,1655.1,6.04178]
[1744638632497,47.076,1655.8,1655.1,6.04193]
[1744638632498,1.3504,1655.8,1655.1,6.04193]
[1744638632662,7.38869,1656.1,1655.6,6.03997]
[1744638632849,6.04011,1655.6,1655.2,0.604193]
[1744638633050,0.19173603,1655.3,1655.1,6.04178]
[1744638633278,6.04058,1655.5,1655.0,67.34643]
[1744638633495,10.39022,1655.7,1655.2,6.04155]
[1744638633701,0.17697855,1655.4,1655.2,6.04144]
[1744638633902,1.3504,1655.7,1655.6,6.0401]
[1744638634412,1.52866172,1655.7,1655.3,6.04086]
[1744638634592,1.52866172,1655.7,1655.4,6.04066]
[1744638634965,1.52866172,1655.7,1655.3,6.04107]
[1744638635176,1.3504,1655.7,1655.3,6.04102]
[1744638635380,1.3504,1655.7,1655.4,6.04067]
[1744638635381,0.17783405,1655.6,1655.4,6.04067]
[1744638635577,1.3504,1655.7,1655.5,6.04047]
[1744638635866,0.17783405,1655.6,1655.5,6.0403]
[1744638636672,1.4442,1655.9,1655.8,6.03937]
[1744638636871,1e-05,1656.1,1655.9,6.03901]
[1744638637316,6.0388,1656.0,1655.6,6.03998]
[1744638637520,1e-05,1656.1,1656.0,6.03864]
[1744638637674,1e-05,1656.1,1655.9,6.03885]
[1744638637870,1e-05,1656.1,1656.0,6.03864]
[1744638638385,1e-05,1656.1,1656.0,15.417389]
[1744638638590,1e-05,1656.1,1656.0,8.171]
[1744638638786,1e-05,1656.1,1656.0,14.20964]
[1744638638992,1e-05,1656.1,1656.0,8.171]
[1744638639200,1e-05,1656.1,1656.0,14.27002397]
[1744638639405,1e-05,1656.1,1656.0,14.20964]
[1744638639574,1e-05,1656.1,1656.0,16.978553]
[1744638642104,1e-05,1656.1,1656.0,19.978553]
[1744638642324,1e-05,1656.1,1656.0,26.49096669]
[1744638643319,1e-05,1656.4,1656.3,7.38525]
[1744638643624,1e-05,1656.4,1656.3,10.38525]
[1744638643783,1e-05,1656.4,1656.3,12.08791512]
[1744638644995,1e-05,1656.4,1656.3,12.63791512]
[1744638645204,1e-05,1656.4,1656.3,12.577566]
[1744638645875,1e-05,1656.4,1656.3,17.17407969]
[1744638646525,0.05,1657.4,1656.7,1.3315]
[1744638646681,0.05,1657.4,1657.3,6.03391]
[1744638646883,0.05,1657.4,1657.3,15.87144556]
[1744638647113,1e-05,1657.4,1657.3,18.811123]
[1744638648330,1e-05,1657.4,1657.3,19.361123]
[1744638648867,1.3795,1658.2,1658.0,6.03102]
[1744638649014,1.3795,1658.2,1657.9,13.99664]
[1744638649219,6.03111,1658.1,1657.9,7.965]
[1744638649447,6.03139,1658.0,1657.6,6.03281]
[1744638649648,12.06295,1658.0,1657.6,6.03281]
[1744638649863,6.03139,1658.0,1657.6,6.03281]
[1744638650164,6.03174,1657.9,1657.6,6.03281]
[1744638650331,6.03139,1658.0,1657.6,8.035719]
[1744638650532,1.3795,1658.2,1658.0,6.03107]
[1744638650740,1.3968,1658.4,1658.0,6.03107]
[1744638651039,0.05,1658.4,1658.3,6.03027]
[1744638651246,0.05,1658.4,1658.3,10.42945933]
[1744638651565,0.05,1658.4,1658.3,9.01516093]
[1744638651852,0.05,1658.4,1658.3,6.03027]
[1744638652254,0.19158013,1658.4,1658.2,13.99343]
[1744638652475,0.19158013,1658.4,1658.2,6.03043]
[1744638652656,6.0308,1658.2,1657.8,13.99493]
[1744638652830,6.03075,1658.2,1657.7,6.03237]
[1744638653035,1.4101,1658.3,1657.9,6.03159]
[1744638653036,0.13068587,1658.1,1657.9,6.03159]
[1744638653219,0.13068587,1658.1,1658.0,13.99136]
[1744638653420,0.05,1658.4,1658.1,12.06168]
[1744638653644,0.13153858,1658.3,1658.2,6.03056]
[1744638654157,0.13153858,1658.3,1658.0,13.99133]
[1744638654724,0.13153858,1658.3,1658.1,6.03086]
[1744638655027,0.13153858,1658.3,1658.2,6.03063]
[1744638655431,0.05,1658.4,1658.3,6.03027]
[1744638655645,0.05,1658.4,1658.2,12.06107]
[1744638655844,0.19574244,1658.4,1658.2,12.06093]
[1744638656045,0.19574244,1658.4,1658.3,6.03027]
[1744638656449,0.19574244,1658.4,1658.2,6.03044]
[1744638656767,0.19574244,1658.4,1658.2,6.03043]
[1744638657468,0.19574244,1658.4,1658.3,6.03027]
[1744638657940,0.19574244,1658.4,1658.3,6.09056729]
[1744638658284,0.19574244,1658.4,1658.3,7.30266702]
[1744638658632,0.19574244,1658.4,1658.3,7.30265905]
[1744638659024,0.3968741,1658.5,1658.4,6.0299]
[1744638659455,4.1e-06,1658.5,1658.4,9.0299]
[1744638659671,6.02711,1659.2,1658.8,6.02809]
[1744638659848,5.8929041,1659.3,1658.8,13.98626]
[1744638659849,6.0268,1659.3,1658.8,13.98626]
[1744638660169,0.13942063,1659.2,1658.8,9.356626]
[1744638660384,0.05,1659.4,1659.2,6.02691]
[1744638660676,6.16662644,1659.3,1658.9,6.02775]
[1744638660844,0.13984644,1659.3,1659.0,6.0878182]
[1744638661041,6.16661644,1659.3,1659.0,6.02771]
[1744638661258,0.05,1659.4,1659.0,1.26584264]
[1744638661460,0.13942063,1659.2,1659.1,6.02725]
[1744638661642,6.02667,1659.3,1658.9,6.02803]
[1744638661842,6.02834,1658.9,1658.5,6.02928]
[1744638662156,6.02748,1659.1,1658.7,6.02876]
[1744638662354,6.02748,1659.1,1658.7,6.02867]
[1744638662569,5.14651369,1659.2,1658.5,6.02932]
[1744638662570,5.14651369,1659.2,1658.5,0.06028192]
[1744638662753,1.3467,1659.1,1658.7,6.02881]
[1744638663075,6.02848,1658.8,1658.5,6.02942]
[1744638663372,7.37414,1659.1,1658.7,6.02863]
[1744638663536,6.0278,1659.0,1658.6,6.02914]
[1744638663731,6.02826,1658.9,1658.5,6.02941]
[1744638663969,6.02826,1658.9,1658.5,12.11911733]
[1744638664338,7.38075,1658.8,1658.4,13.98584]
[1744638664534,7.38075,1658.8,1658.4,20.01559]
[1744638664754,7.38075,1658.8,1658.3,4.21209973]
[1744638664755,6.02887,1658.7,1658.3,12.06036]
[1744638665044,1.352,1658.8,1658.2,0.06029308]
[1744638665267,7.38069,1658.8,1658.4,6.02981]
[1744638665579,13.40947,1658.8,1658.5,6.02941]
[1744638665873,13.40947,1658.8,1658.4,6.02976]
[1744638666077,13.40947,1658.8,1658.3,6.09049559]
[1744638666078,6.0292,1658.6,1658.3,6.0302]
[1744638666245,12.05857,1658.6,1658.2,6.03058]
[1744638666446,6.0292,1658.6,1658.2,12.06108]
[1744638666778,1.3476,1658.5,1658.2,6.03047]
[1744638666985,1.3476,1658.5,1658.3,6.0302]
[1744638667341,1.3476,1658.5,1658.3,6.0301]
[1744638667685,1.3476,1658.5,1658.4,6.0299]
[1744638667884,1.3476,1658.5,1658.1,6.03099]
[1744638667885,7.37716,1658.5,1658.1,6.03091]
[1744638668084,5.62097671,1658.5,1658.0,6.0313]
[1744638668387,5.62097671,1658.5,1657.7,10.48172]
[1744638668388,6.03112,1658.1,1657.7,6.03239]
[1744638668683,6.03112,1658.1,1657.8,6.03195]
[1744638668889,6.03112,1658.1,1657.6,13.98868]
[1744638668890,6.03164,1658.0,1657.6,13.98868]
[1744638669041,6.032,1657.9,1657.4,9.3757]
[1744638669381,4.82337671,1658.1,1657.8,6.03202]
[1744638669382,4.27337671,1658.1,1657.8,6.03202]
[1744638669553,1.3329,1658.2,1657.9,12.06328]
[1744638669882,1.3951,1658.5,1658.3,6.03004]
[1744638670089,1.3951,1658.5,1657.9,13.91071]
[1744638670266,1.3951,1658.5,1658.3,6.03008]
[1744638670450,1.3951,1658.5,1658.3,6.0302]
[1744638670658,1.326,1658.8,1658.5,6.0295]
[1744638670865,1.326,1658.8,1658.3,6.63325]
[1744638670866,6.02883,1658.7,1658.3,6.63325]
[1744638671173,6.02893,1658.7,1658.3,12.6633]
[1744638671383,6.02944,1658.6,1658.2,6.03057]
[1744638671584,6.02984,1658.5,1658.1,6.03076]
[1744638671783,7.40472,1658.6,1658.2,6.03043]
[1744638671991,7.40472,1658.6,1658.0,7.879]
[1744638671992,1.3755,1658.6,1658.0,7.879]
[1744638672205,7.40486,1658.6,1658.2,6.03041]
[1744638672520,6.02976,1658.5,1658.1,6.03078]
[1744638672658,7.40474,1658.6,1658.1,6.03097]
[1744638672861,6.02965,1658.5,1658.1,12.0617]
[1744638673201,6.03059,1658.3,1657.9,6.03167]
[1744638673352,6.03059,1658.3,1657.3,17.22530717]
[1744638673353,1.3938,1658.2,1657.7,13.91141]
[1744638673552,1.3938,1658.2,1657.7,7.879]
[1744638673553,6.03138,1658.0,1657.7,7.879]
[1744638673772,6.03175,1657.9,1657.7,7.879]
[1744638674203,6.03209,1657.8,1657.5,6.03303]
[1744638674504,1.3683,1657.8,1657.3,7.879]
[1744638674665,1.3683,1657.8,1657.4,12.85474]
[1744638674868,7.40065,1657.8,1657.4,6.82129]
[1744638675168,7.40065,1657.8,1657.7,6.03245]
[1744638675169,1.3683,1657.8,1657.7,6.03245]
[1744638675371,1.3365,1658.3,1658.0,6.03112]
[1744638675699,1.3365,1658.3,1658.2,6.03063]
[1744638675864,1.4344,1658.6,1658.3,6.03026]
[1744638676069,6.0297,1658.5,1658.1,12.06177]
[1744638676272,6.0297,1658.5,1658.1,6.03085]
[1744638676579,6.02954,1658.5,1658.1,6.03076]
[1744638676893,6.02995,1658.4,1658.1,6.03076]
[1744638677097,6.02995,1658.4,1658.1,12.06165]
[1744638677396,6.02954,1658.5,1658.1,12.06165]
[1744638677397,6.02977,1658.5,1658.1,13.3283262]
[1744638677695,12.06011,1658.4,1658.0,12.665732]
[1744638677898,6.02967,1658.5,1658.0,0.603112]
[1744638678098,6.02967,1658.5,1658.2,6.0305]
[1744638678257,6.02967,1658.5,1658.1,6.03093]
[1744638678594,6.0301,1658.4,1658.0,12.06255]
[1744638678810,1.4344,1658.6,1658.4,6.02986]
[1744638679171,1.4344,1658.6,1658.4,12.05966]
[1744638679513,1.4104,1659.0,1658.8,6.02829]
[1744638680235,1.4104,1659.0,1658.8,12.05656]
[1744638680537,1.4104,1659.0,1658.8,6.02827]
[1744638680838,1.4104,1659.0,1658.7,6.02877]
[1744638681140,1.3983,1659.2,1658.8,6.02829]
[1744638681350,1.3983,1659.2,1659.0,6.02754]
[1744638681499,7.42532,1659.2,1658.9,6.02792]
[1744638681692,7.42551,1659.2,1658.8,6.02825]
[1744638681899,6.02788,1659.0,1658.6,6.02895]
[1744638682220,0.05,1659.4,1659.3,6.02663]
[1744638682426,0.05,1659.4,1659.1,6.02716]
[1744638682654,0.05,1659.4,1658.8,7.3392]
[1744638682655,6.02663,1659.3,1658.8,13.9074]
[1744638682930,1.4449,1659.1,1658.7,6.0286]
[1744638683146,4.4949,1659.4,1658.8,0.060284]
[1744638683304,10.52145,1659.4,1659.0,6.02746]
[1744638683646,1.4949,1659.4,1659.1,6.02729]
[1744638683937,1.4949,1659.4,1659.2,6.02667]
[1744638684124,1.4949,1659.4,1659.0,6.02747]
[1744638684323,0.55,1659.3,1658.9,7.878]
[1744638684632,6.02715,1659.2,1658.8,6.02841]
[1744638684832,6.57666,1659.3,1658.6,1.393]
[1744638685020,12.60353,1659.3,1658.8,6.0281]
[1744638685218,7.33797,1659.0,1658.6,6.02907]
[1744638685421,13.36594,1659.0,1658.6,6.02907]
[1744638685724,1.3101,1659.3,1659.0,6.0277]
[1744638686028,6.0763,1659.4,1659.0,12.0554]
[1744638686193,0.05,1659.4,1659.1,0.06027494]
[1744638686415,0.05,1659.4,1658.9,6.02809]
[1744638686416,6.07642,1659.4,1658.9,6.02781]
[1744638686623,12.0536,1659.3,1658.9,6.630591]
[1744638686953,6.0763,1659.4,1659.0,6.02755]
[1744638687159,6.02683,1659.3,1658.9,6.630671]
[1744638687356,6.0763,1659.4,1659.0,12.05525]
[1744638687556,0.05,1659.4,1659.1,6.02713]
[1744638687961,0.05,1659.4,1659.2,6.02699]
[1744638688159,0.05,1659.4,1659.3,6.02663]
[1744638688654,0.05,1659.4,1659.2,6.02678]
[1744638688841,0.05,1659.4,1659.3,6.02663]
[1744638689223,0.05,1659.4,1659.2,6.02678]
[1744638689455,0.05,1659.4,1659.3,6.629308]
[1744638690745,1.3188,1659.3,1659.0,6.02743]
[1744638690922,0.1213169,1659.2,1659.0,12.05494]
[1744638691129,1.3188,1659.3,1659.1,6.02736]
[1744638691361,0.05,1659.4,1659.2,6.027]
[1744638691524,0.05,1659.4,1659.3,6.02663]
[1744638691725,0.05,1659.4,1659.2,6.0268]
[1744638692260,0.05,1659.4,1659.3,6.02663]
[1744638692830,0.05,1659.4,1659.1,6.02733]
[1744638693051,6.02707,1659.2,1658.9,6.02803]
[1744638693242,0.55,1659.3,1659.0,6.02763]
[1744638693568,0.55,1659.3,1659.0,12.05514]
[1744638693728,0.55,1659.3,1659.0,6.02751]
[1744638693926,0.05,1659.4,1659.2,6.02699]
[1744638694237,0.05,1659.4,1659.1,6.02735]
[1744638694452,0.05,1659.4,1659.2,6.02676]
[1744638694760,0.05,1659.4,1659.3,6.02663]
[1744638695334,0.05,1659.4,1659.3,6.0868928]
[1744638695539,0.05,1659.4,1659.3,7.90094208]
[1744638696229,0.05,1659.4,1659.3,7.84067928]
[1744638698242,0.05,1659.4,1659.3,6.02663]
[1744638698642,0.05,1659.4,1659.3,6.08688828]
[1744638698980,1e-05,1659.4,1659.3,7.43597956]
[1744638699260,1e-05,1659.4,1659.3,15.49813403]
[1744638700151,0.3968741,1660.1,1660.0,7.42269]
[1744638700357,0.56643467,1660.1,1660.0,8.767388]
[1744638700758,0.56643467,1660.1,1660.0,7.42269]
[1744638700960,0.3968741,1660.1,1660.0,6.02409]
[1744638701277,0.56643467,1660.1,1660.0,6.02409]
[1744638702076,0.3968741,1660.1,1660.0,6.02409]
[1744638702461,0.56643467,1660.1,1660.0,6.02409]
[1744638702639,0.56643467,1660.1,1659.9,12.04859]
[1744638703087,0.56643467,1660.1,1659.8,6.02467]
[1744638703235,0.56643467,1660.1,1659.8,12.04935]
[1744638703440,0.56643467,1660.1,1659.9,6.02429]
[1744638703771,0.51459465,1660.1,1660.0,6.02409]
[1744638704650,0.3968741,1660.1,1659.9,6.02429]
[1744638704976,0.3968741,1660.1,1660.0,6.02409]
[1744638705365,0.51890096,1660.1,1660.0,6.02409]
[1744638705785,0.51890096,1660.1,1659.9,6.02429]
[1744638705977,0.51890096,1660.1,1659.5,3.0]
[1744638705978,6.02445,1659.9,1659.3,6.02647]
[1744638706195,6.02591,1659.5,1659.0,55.544751]
[1744638706509,0.11945618,1659.4,1659.2,6.02668]
[1744638706792,6.02569,1659.6,1659.2,6.02668]
[1744638707099,0.11977984,1659.5,1659.2,6.02688]
[1744638707305,0.11977984,1659.5,1659.0,54.942]
[1744638707486,6.02713,1659.2,1659.0,46.981]
[1744638707801,1.3359,1659.4,1658.8,6.02844]
[1744638707802,0.11542235,1659.1,1658.8,7.961]
[1744638708102,1.3293,1659.1,1658.5,6.02951]
[1744638708283,6.16427238,1659.0,1658.7,6.02877]
[1744638708487,6.16447238,1659.0,1658.4,7.961]
[1744638708694,6.02828,1658.9,1658.5,6.02924]
[1744638708866,1.4544,1658.7,1658.4,7.961]
[1744638709088,6.02921,1658.6,1658.4,7.961]
[1744638709285,1.4544,1658.7,1658.4,7.961]
[1744638709512,1.4544,1658.7,1658.5,6.02941]
[1744638709719,6.02919,1658.6,1658.4,7.961]
[1744638710031,6.02974,1658.5,1658.1,6.03094]
[1744638710195,6.02974,1658.5,1658.1,12.1758996]
[1744638710529,6.02997,1658.4,1658.1,6.1449596]
[1744638710829,6.02974,1658.5,1658.2,6.03058]
[1744638710986,7.48324,1658.7,1658.4,6.02986]
[1744638711511,1.4544,1658.7,1658.5,6.02934]
[1744638711710,1.4544,1658.7,1658.5,12.05872]
[1744638711915,1.4544,1658.7,1658.2,7.41052]
[1744638711916,7.48351,1658.7,1658.2,12.06101]
[1744638712092,6.02976,1658.5,1658.1,6.03086]
[1744638712437,0.55,1658.6,1658.3,6.03027]
[1744638712616,6.57951,1658.6,1658.2,12.06099]
[1744638712985,7.48322,1658.7,1658.4,6.02984]
[1744638713223,7.48322,1658.7,1658.3,12.0601]
[1744638713395,7.48322,1658.7,1658.3,6.03004]
[1744638713599,1.4544,1658.7,1658.2,1.206099]
[1744638713790,7.36247,1658.9,1658.5,6.02929]
[1744638714182,1.3343,1658.9,1658.5,6.0292]
[1744638714386,1.3343,1658.9,1658.3,7.48414]
[1744638714387,1.3343,1658.9,1658.3,7.48407]
[1744638714627,1.3343,1658.9,1658.4,6.09008789]
[1744638714795,1.3343,1658.9,1658.7,12.05732]
[1744638714994,6.02701,1659.2,1658.7,1.205732]
[1744638715337,1.3238,1659.3,1659.0,6.02753]
[1744638715617,1.3238,1659.3,1658.9,6.02772]
[1744638715618,1.0738,1659.3,1658.9,6.02772]
[1744638715817,7.10055,1659.3,1658.9,6.02772]
[1744638716207,1.0738,1659.3,1658.8,6.02839]
[1744638716433,6.02734,1659.2,1658.8,12.05666]
[1744638716645,6.02734,1659.2,1658.8,6.02827]
[1744638716848,0.9937736,1659.2,1658.3,1.4162]
[1744638717140,0.9937736,1659.2,1657.8,6.03209]
[1744638717141,6.03089,1658.2,1657.8,6.03209]
[1744638717348,6.03106,1658.1,1657.8,6.03208]
[1744638717503,6.03106,1658.1,1657.8,7.238516]
[1744638718027,9.02996,1658.4,1658.0,6.03113]
[1744638718236,3.0,1658.4,1658.1,6.03088]
[1744638718401,6.03019,1658.4,1658.1,6.03098]
[1744638718740,13.39842,1658.4,1658.0,12.06257]
[1744638718904,1.3381,1658.4,1658.1,6.03084]
[1744638719104,1.3381,1658.4,1658.0,6.0311]
[1744638719105,7.36812,1658.4,1658.0,6.0311]
[1744638719309,6.03042,1658.3,1657.9,6.03166]
[1744638719905,6.03042,1658.3,1657.9,6.03156]
[1744638720229,6.58027,1658.3,1657.8,6.03203]
[1744638720443,0.55,1657.9,1657.4,1.4162]
[1744638720605,6.0321,1657.8,1657.4,6.03321]
[1744638720810,6.03271,1657.7,1657.3,6.0339]
[1744638721034,1.369,1658.1,1657.5,6.03308]
[1744638721239,1.919,1658.4,1657.6,3.66362645]
[1744638721440,1.369,1658.6,1658.4,6.02975]
[1744638721641,1.369,1658.6,1658.1,6.03099]
[1744638721945,1.369,1658.6,1658.4,6.02963]
[1744638722142,6.02956,1658.5,1658.2,13.99658]
[1744638722311,12.06092,1658.3,1657.9,6.03167]
[1744638722505,6.03091,1658.2,1657.8,6.03205]
[1744638722737,6.03112,1658.1,1657.8,6.03205]
[1744638722942,0.55,1658.3,1658.0,6.03135]
[1744638723109,6.03027,1658.3,1657.7,7.967]
[1744638723310,12.06233,1658.1,1657.7,6.03232]
[1744638723545,12.06233,1658.1,1657.2,0.45589173]
[1744638723546,1.3562,1657.7,1657.1,0.05]
[1744638723747,6.03338,1657.5,1657.2,6.03426]
[1744638724042,0.55,1657.6,1657.4,6.03337]
[1744638724265,1.3562,1657.7,1657.6,6.03281]
[1744638724466,0.55,1658.1,1657.6,6.03281]
[1744638724467,7.38737,1658.1,1657.7,6.03238]
[1744638724648,1.3562,1658.1,1657.8,6.03203]
[1744638724980,0.55,1658.0,1657.6,0.603281]
[1744638725139,0.55,1657.8,1657.3,20.03454]
[1744638725335,1.4169,1657.6,1657.3,6.03371]
[1744638725539,7.44995,1657.6,1657.2,12.06835]
[1744638725741,1.4169,1657.6,1657.5,6.03318]
[1744638725936,1.4169,1657.9,1657.7,6.0322]
[1744638726130,7.44877,1657.9,1657.6,6.03279]
[1744638726348,1.4169,1657.9,1657.7,6.03221]
[1744638727185,6.03209,1657.8,1657.4,6.03327]
[1744638727340,12.06535,1657.7,1657.3,6.03378]
[1744638727539,7.40287,1657.6,1657.2,6.03422]
[1744638727735,6.03335,1657.5,1657.1,6.08445]
[1744638727936,6.03323,1657.5,1657.2,6.03416]
[1744638728190,1.3697,1657.6,1657.4,12.0666]
[1744638728338,7.5471,1657.9,1657.6,6.03281]
[1744638728538,7.5471,1657.9,1657.5,6.03318]
[1744638728862,7.5408,1658.4,1658.1,6.03068]
[1744638729036,1.3708,1658.4,1658.0,6.03136]
[1744638729235,1.3708,1658.4,1658.0,0.603136]
[1744638729473,7.40087,1658.4,1658.0,6.03131]
[1744638729779,7.40087,1658.4,1658.0,12.06262]
[1744638729933,1.3708,1658.4,1658.1,6.03093]
[1744638730134,1.3708,1658.4,1658.1,12.06177]
[1744638730381,7.40085,1658.4,1658.1,6.03084]
[1744638730550,7.40085,1658.4,1658.0,6.03133]
[1744638730748,0.55,1658.3,1657.5,7.969]
[1744638730947,0.55,1658.3,1657.6,6.03277]
[1744638731167,7.34795,1658.0,1657.6,6.03267]
[1744638731493,6.03229,1657.8,1657.5,7.969]
[1744638731641,6.03257,1657.7,1657.5,7.969]
[1744638731840,6.58202,1657.9,1657.5,14.00206]
[1744638732084,6.58202,1657.9,1657.5,7.969]
[1744638732085,6.0322,1657.8,1657.5,7.969]
[1744638732287,6.0322,1657.8,1657.5,14.00216]
[1744638732492,1.3164,1658.0,1657.5,16.005717]
[1744638732784,6.03192,1657.9,1657.5,2.003557]
[1744638733074,6.03192,1657.9,1657.3,3.0]
[1744638733075,3.0,1657.9,1657.3,6.03383]
[1744638733279,6.03209,1657.8,1657.5,6.03305]
[1744638733774,6.03338,1657.5,1657.2,7.938]
[1744638733935,6.03338,1657.5,1657.1,12.11902]
[1744638734134,1.4075,1657.7,1657.4,6.03336]
[1744638734353,1.4075,1657.7,1657.5,6.03298]
[1744638734553,1.4075,1657.7,1657.4,12.670166]